bitfinex-derivatives/quotes_SOLF0:USTF0_20260116
["timestamp","ask_amount","ask_price","bid_price","bid_amount"]
[1768575853185,264.42,143.18,143.07,6.2925]
[1768575853375,264.42,143.18,143.05,3.29818379]
[1768575853576,5.58784001,143.17,143.05,3.29818379]
[1768575854179,5.58784001,143.17,143.07,3.29818379]
[1768575854583,5.58784001,143.17,143.06,6.2929]
[1768575855283,103.41084001,143.17,143.04,3.29818379]
[1768575856879,6.2898,143.14,143.06,6.2932]
[1768575857181,97.8269,143.16,143.04,3.29818379]
[1768575857679,6.2907,143.12,143.04,3.29818379]
[1768575857978,103.43134001,143.14,143.01,3.29818379]
[1768575858177,5.58784001,143.15,143.02,3.29818379]
[1768575858483,6.2902,143.13,143.04,3.29818379]
[1768575858672,5.58784001,143.15,143.04,3.29818379]
[1768575858876,6.2906,143.12,143.04,9.59218379]
[1768575859080,5.58784001,143.12,143.01,3.29818379]
[1768575859285,5.58784001,143.12,142.97,3.29818379]
[1768575859286,362.0627,143.11,142.97,3.29818379]
[1768575859480,6.2925,143.08,142.99,3.29818379]
[1768575860182,5.58784001,143.09,142.99,3.29818379]
[1768575860387,103.46604001,143.09,142.96,3.29818379]
[1768575860587,6.2933,143.06,142.97,6.2969]
[1768575860975,5.58784001,143.09,142.97,3.29818379]
[1768575861386,270.4918,143.1,143.0,9.54508725]
[1768575861587,6.2918,143.1,143.01,3.24938725]
[1768575861978,6.2918,143.1,143.01,9.54468725]
[1768575862177,269.78784001,143.12,143.01,3.24938725]
[1768575862383,264.2,143.12,143.01,3.24938725]
[1768575862785,264.2,143.12,143.03,9.54388725]
[1768575862984,264.2,143.12,143.04,3.24938725]
[1768575863780,270.4906,143.12,143.04,3.24938725]
[1768575864491,264.2,143.12,143.04,3.24938725]
[1768575864991,264.2,143.12,143.05,6.2936]
[1768575865591,264.2,143.12,143.06,9.54248725]
[1768575865786,6.2902,143.13,143.06,9.54248725]
[1768575866196,264.22,143.16,143.07,3.24938725]
[1768575867089,264.22,143.16,143.09,9.54118725]
[1768575867686,264.22,143.16,143.07,6.2924]
[1768575867891,264.22,143.16,143.05,3.24938725]
[1768575868891,6.2903,143.13,143.05,9.54268725]
[1768575871998,6.2903,143.13,143.05,3.24938725]
[1768575873499,264.22,143.16,143.05,9.54288725]
[1768575873695,10.48515054,143.15,143.05,9.54288725]
[1768575873895,10.48515054,143.14,143.05,9.54288725]
[1768575874096,5.2282074,143.13,143.05,9.54288725]
[1768575874292,264.22,143.16,143.05,9.54288725]
[1768575874493,10.49377244,143.15,143.05,9.54288725]
[1768575874793,16.78357244,143.14,143.05,9.54288725]
[1768575874997,5.23177539,143.13,143.05,9.54288725]
[1768575875203,285.24,143.16,143.05,3.24938725]
[1768575875504,6.2902,143.13,143.05,3.24938725]
[1768575875692,264.22,143.16,143.05,9.54298725]
[1768575876000,10.49783883,143.15,143.05,9.54298725]
[1768575876195,10.49783883,143.14,143.05,9.54298725]
[1768575876500,5.2356051,143.13,143.05,9.54298725]
[1768575876693,264.22,143.16,143.05,9.54298725]
[1768575876893,10.5006824,143.15,143.05,9.54298725]
[1768575877094,10.5006824,143.14,143.05,9.54298725]
[1768575877294,5.2356051,143.13,143.05,9.54298725]
[1768575877488,264.22,143.16,143.05,9.54298725]
[1768575877795,6.2902,143.13,143.05,9.54298725]
[1768575878392,6.2902,143.13,143.0,103.51784001]
[1768575878393,5.23370951,143.12,143.03,6.2942]
[1768575878599,5.23405757,143.11,143.03,9.31065406]
[1768575878797,97.8422,143.14,143.03,9.31065406]
[1768575878989,10.50195686,143.13,143.01,6.295]
[1768575879195,16.08979687,143.12,143.01,6.295]
[1768575879398,10.50195686,143.11,143.01,9.31145406]
[1768575879598,5.23417662,143.1,143.01,9.31145406]
[1768575879803,5.58784001,143.12,143.01,9.31145406]
[1768575880000,10.50218391,143.11,143.01,9.31145406]
[1768575880309,5.23417494,143.1,142.99,6.2959]
[1768575880597,97.8679,143.11,142.99,9.31235406]
[1768575880598,5.23417494,143.09,142.99,9.31235406]
[1768575880803,264.2,143.09,142.99,3.01645406]
[1768575880997,10.42689127,143.08,142.99,3.01645406]
[1768575881197,5.23476528,143.07,142.99,3.01645406]
[1768575881400,6.2927,143.08,143.0,3.01645406]
[1768575882405,6.2927,143.08,143.02,3.01645406]
[1768575882707,6.2918,143.1,143.02,3.01645406]
[1768575882904,5.58784001,143.12,143.02,3.01645406]
[1768575883298,5.23094342,143.11,143.02,3.01645406]
[1768575883500,5.58784001,143.12,143.02,3.01645406]
[1768575883807,5.23130544,143.11,143.02,3.01645406]
[1768575884008,5.58784001,143.12,143.02,3.01645406]
[1768575884208,5.23126954,143.11,143.02,3.01645406]
[1768575884408,5.58784001,143.12,143.02,3.01645406]
[1768575884608,5.23160554,143.11,143.02,3.01645406]
[1768575884902,6.2916,143.1,143.02,3.01645406]
[1768575886604,97.8622,143.11,142.99,9.31255406]
[1768575886810,5.23178213,143.1,142.99,9.31255406]
[1768575887012,97.8622,143.11,142.99,9.31255406]
[1768575887218,5.23196505,143.1,142.99,9.31255406]
[1768575887419,97.8622,143.11,142.99,9.31255406]
[1768575887722,5.23156822,143.1,142.99,9.31255406]
[1768575887923,6.2925,143.08,142.99,9.31255406]
[1768575888313,6.2925,143.08,143.0,3.01645406]
[1768575888922,6.2929,143.07,142.97,9.31345406]
[1768575889221,103.46634001,143.09,142.98,3.01645406]
[1768575889421,5.59118943,143.08,142.98,3.01645406]
[1768575889627,97.8968,143.06,142.94,3.01645406]
[1768575890112,5.23241397,143.05,142.94,3.01645406]
[1768575890316,6.2947,143.03,142.94,9.31475406]
[1768575890516,6.2947,143.03,142.95,3.01645406]
[1768575890818,6.2942,143.04,142.95,9.31445406]
[1768575891217,6.2942,143.04,142.96,3.01645406]
[1768575893029,97.8679,143.1,142.96,3.01645406]
[1768575893325,264.26,143.11,142.98,3.17412538]
[1768575893624,270.5512,143.11,143.02,9.46892538]
[1768575894926,6.2915,143.1,143.02,9.46892538]
[1768575897226,6.2909,143.12,143.02,9.46892538]
[1768575897530,6.2909,143.12,143.03,3.17412538]
[1768575899528,6.2909,143.12,143.03,9.46862538]
[1768575900030,362.1313,143.13,143.01,6.2953]
[1768575900335,5.59118943,143.09,142.97,3.17412538]
[1768575900630,5.59118943,143.11,142.99,3.17412538]
[1768575900818,269.48659492,143.1,142.99,3.17412538]
[1768575901022,264.26,143.1,142.99,3.17412538]
[1768575901327,103.43628943,143.14,143.01,3.17412538]
[1768575901523,274.67026001,143.13,143.01,3.17412538]
[1768575901726,10.41026001,143.12,143.01,3.17412538]
[1768575901926,10.41026001,143.12,142.98,103.53528943]
[1768575901927,5.22666669,143.11,143.04,3.17412538]
[1768575902126,264.26,143.13,143.04,3.17412538]
[1768575902932,5.22585208,143.12,143.02,6.2946]
[1768575903230,5.22658946,143.11,143.02,6.2946]
[1768575903419,269.85118943,143.13,143.02,6.2946]
[1768575903720,10.41128749,143.12,143.02,6.2946]
[1768575903920,269.85118943,143.13,143.03,3.17412538]
[1768575904116,5.22651615,143.12,143.03,3.17412538]
[1768575904328,269.85118943,143.13,143.03,3.17412538]
[1768575904530,5.22661787,143.12,143.03,3.17412538]
[1768575904731,269.85118943,143.13,143.03,3.17412538]
[1768575904924,5.22662149,143.12,143.03,3.17412538]
[1768575905129,6.2915,143.1,143.02,6.2946]
[1768575907832,6.2915,143.1,143.01,3.17412538]
[1768575909031,362.0943,143.15,143.02,3.17412538]
[1768575909230,5.22888966,143.14,143.02,3.17412538]
[1768575909437,5.22888966,143.13,143.02,3.17412538]
[1768575909619,5.22901968,143.12,143.02,3.17412538]
[1768575909819,5.22922426,143.11,143.02,3.17412538]
[1768575910020,103.43918943,143.13,143.02,3.17412538]
[1768575910226,10.38116207,143.12,143.02,3.17412538]
[1768575910424,5.22969467,143.11,143.02,3.17412538]
[1768575910630,6.2908,143.12,143.03,3.17412538]
[1768575911033,6.2908,143.12,143.03,9.46852538]
[1768575911432,6.2908,143.12,143.04,3.17412538]
[1768575912734,6.2912,143.11,143.04,3.17412538]
[1768575913034,285.28,143.15,143.04,9.46812538]
[1768575913240,10.38512321,143.14,143.04,9.46812538]
[1768575913538,5.23207874,143.13,143.04,9.46812538]
[1768575913734,285.28,143.15,143.04,9.46812538]
[1768575913930,6.2903,143.13,143.04,9.46812538]
[1768575914126,5.23270171,143.12,143.04,9.46812538]
[1768575914329,6.2903,143.13,143.04,9.46812538]
[1768575914537,6.2907,143.12,143.04,9.46812538]
[1768575914734,6.2907,143.12,143.04,3.17412538]
[1768575915034,5.23367838,143.11,143.01,3.17412538]
[1768575915238,6.292,143.09,143.01,3.17412538]
[1768575916536,6.2925,143.08,143.01,3.17412538]
[1768575917333,5.59118943,143.13,143.01,3.17412538]
[1768575917532,5.23418386,143.12,143.01,3.17412538]
[1768575917740,362.0987,143.15,143.04,3.17412538]
[1768575918034,6.291,143.12,143.04,3.17412538]
[1768575918736,6.291,143.12,143.04,9.46822538]
[1768575919536,285.26,143.15,143.05,6.2936]
[1768575919833,10.3888083,143.14,143.05,9.46772538]
[1768575920034,5.23396608,143.13,143.05,9.46772538]
[1768575920235,264.24,143.15,143.05,9.46772538]
[1768575920432,10.3884598,143.14,143.05,9.46772538]
[1768575920629,5.23378633,143.13,143.05,9.46772538]
[1768575920829,264.24,143.15,143.05,9.46772538]
[1768575921028,10.38901778,143.14,143.05,9.46772538]
[1768575921237,5.23414526,143.13,143.05,9.46772538]
[1768575921431,264.24,143.15,143.05,9.46772538]
[1768575921742,429.00813096,143.18,143.07,3.21818062]
[1768575921941,10.38720594,143.17,143.07,3.21818062]
[1768575922234,6.2893,143.15,143.07,9.51088062]
[1768575922640,429.00813096,143.18,143.07,9.51088062]
[1768575922840,10.38488121,143.17,143.07,9.51088062]
[1768575923050,6.2893,143.15,143.07,9.51088062]
[1768575925540,6.2902,143.13,143.05,9.51158062]
[1768575925740,5.59118943,143.16,143.05,9.51158062]
[1768575925933,5.23032227,143.15,143.05,9.51158062]
[1768575926137,5.59118943,143.16,143.05,9.51158062]
[1768575926340,6.29,143.14,143.06,3.21818062]
[1768575926535,6.29,143.14,143.07,3.21818062]
[1768575926739,26.61118943,143.16,143.04,3.21818062]
[1768575927045,5.23017425,143.15,143.04,3.21818062]
[1768575927247,6.2902,143.13,143.05,9.51178062]
[1768575927545,6.2902,143.13,143.06,3.21818062]
[1768575928047,6.2897,143.15,143.07,3.21818062]
[1768575928850,6.2897,143.15,143.08,3.0703952]
[1768575929340,429.00813096,143.18,143.09,3.0703952]
[1768575930439,6.289,143.16,143.09,3.0703952]
[1768575933754,6.2894,143.15,143.09,3.0703952]
[1768575934051,429.00813096,143.18,143.09,3.0703952]
[1768575934253,6.2887,143.17,143.09,9.3621952]
[1768575934547,97.7821,143.23,143.1,3.0703952]
[1768575934752,274.5398334,143.22,143.1,3.0703952]
[1768575934951,5.59118943,143.2,143.1,3.0703952]
[1768575935653,6.287,143.21,143.12,3.0703952]
[1768575935844,264.18,143.22,143.12,3.0703952]
[1768575936249,6.2876,143.19,143.1,6.2911]
[1768575936555,6.2876,143.19,143.1,9.3614952]
[1768575936949,6.2876,143.19,143.11,3.0703952]
[1768575937560,6.2869,143.21,143.12,3.0703952]
[1768575937858,2.18743519,143.2,143.12,3.0703952]
[1768575938558,2.18743519,143.2,143.14,3.0703952]
[1768575938953,2.18743519,143.21,143.14,3.0703952]
[1768575939551,97.7552,143.27,143.14,3.0703952]
[1768575939757,274.49149918,143.26,143.14,3.0703952]
[1768575940053,2.18743519,143.23,143.15,3.0703952]
[1768575940854,8.47333519,143.23,143.15,3.0703952]
[1768575941356,2.18743519,143.22,143.15,3.0703952]
[1768575942057,6.2859,143.23,143.15,3.0703952]
[1768575942259,2.18743519,143.24,143.15,3.0703952]
[1768575943858,8.47283519,143.24,143.16,3.0703952]
[1768575944752,6.2859,143.23,143.16,3.0703952]
[1768575944950,2.18743519,143.22,143.16,3.0703952]
[1768575945462,2.18743519,143.23,143.16,3.0703952]
[1768575945864,8.47263519,143.25,143.16,3.0703952]
[1768575946762,8.47263519,143.25,143.17,3.0703952]
[1768575946957,6.2852,143.25,143.17,3.0703952]
[1768575947157,8.47263519,143.25,143.17,3.0703952]
[1768575947363,17.24204888,143.28,143.18,3.0703952]
[1768575947960,6.285,143.25,143.18,3.0703952]
[1768575948761,6.2854,143.24,143.16,3.0703952]
[1768575949859,6.2854,143.24,143.16,9.3590952]
[1768575950368,97.7671,143.25,143.14,6.2894]
[1768575950567,103.34207208,143.25,143.14,9.3597952]
[1768575951055,6.2862,143.22,143.14,3.0703952]
[1768575951658,6.2867,143.21,143.14,3.0703952]
[1768575951853,103.36237208,143.22,143.09,3.21033644]
[1768575952061,97.7928,143.21,143.09,3.21033644]
[1768575952767,6.2874,143.2,143.11,3.21033644]
[1768575953160,5.57497208,143.21,143.11,3.21033644]
[1768575953762,6.288,143.18,143.08,9.50233644]
[1768575954359,5.57497208,143.18,143.07,3.21033644]
[1768575954668,264.04,143.17,143.07,3.21033644]
[1768575954869,97.8292,143.16,143.04,9.50413644]
[1768575955060,5.57497208,143.15,143.04,9.50413644]
[1768575955468,11.86457208,143.15,143.06,3.21033644]
[1768575955869,5.57497208,143.15,143.06,3.21033644]
[1768575956166,103.41197208,143.15,143.03,9.50463644]
[1768575956669,6.29,143.14,143.04,3.21033644]
[1768575956866,264.04,143.17,143.05,3.21033644]
[1768575957065,5.57497208,143.18,143.05,3.21033644]
[1768575957369,264.06,143.17,143.05,3.21033644]
[1768575958469,264.06,143.17,143.08,3.21033644]
[1768575959370,6.2889,143.16,143.08,3.21033644]
[1768575959971,264.06,143.17,143.08,3.21033644]
[1768575960766,264.06,143.17,143.09,3.21033644]
[1768575961876,270.3485,143.17,143.09,3.21033644]
[1768575962273,264.06,143.17,143.09,3.21033644]
[1768575962573,264.06,143.17,143.09,9.50213644]
[1768575963276,270.3485,143.17,143.09,3.21033644]
[1768575963472,264.06,143.17,143.07,6.2925]
[1768575963677,264.06,143.17,143.08,3.21033644]
[1768575964781,264.06,143.17,143.1,3.21033644]
[1768575965076,168.17592944,143.23,143.12,3.21033644]
[1768575965674,168.17592944,143.23,143.15,9.49953644]
[1768575966070,168.17592944,143.23,143.15,3.21033644]
[1768575966675,168.17592944,143.23,143.17,6.2882]
[1768575966876,168.17592944,143.23,143.15,3.21033644]
[1768575967277,168.17592944,143.23,143.16,6.2887]
[1768575967472,168.17592944,143.23,143.15,3.21033644]
[1768575967976,168.17592944,143.23,143.15,9.49923644]
[1768575968173,168.17592944,143.23,143.15,3.21033644]
[1768575968378,168.17592944,143.23,143.16,3.21033644]
[1768575968566,275.97927208,143.27,143.17,6.2883]
[1768575968771,5.21079505,143.26,143.17,6.2883]
[1768575968968,269.69497208,143.27,143.17,6.2883]
[1768575969281,264.12,143.27,143.17,3.21033644]
[1768575970280,264.12,143.27,143.2,3.21033644]
[1768575971879,264.12,143.27,143.2,6.2869]
[1768575973292,264.12,143.27,143.18,6.2877]
[1768575974282,269.69497208,143.27,143.16,3.21033644]
[1768575975993,6.2845,143.26,143.17,6.2882]
[1768575976394,6.2845,143.26,143.16,3.21033644]
[1768575976395,5.57497208,143.26,143.15,3.21033644]
[1768575977292,6.2851,143.25,143.15,9.49933644]
[1768575977492,5.57497208,143.26,143.15,9.49933644]
[1768575977702,5.57497208,143.26,143.15,6.289]
[1768575978589,5.57497208,143.23,143.09,101.07823644]
[1768575978895,5.57497208,143.23,143.1,3.21033644]
[1768575979096,5.57497208,143.23,143.12,6.2905]
[1768575979097,6.2867,143.21,143.12,6.2905]
[1768575979296,270.2867,143.21,143.12,6.2905]
[1768575979987,11.86097208,143.23,143.13,6.29]
[1768575980191,264.0,143.23,143.13,3.21033644]
[1768575981091,264.0,143.23,143.15,6.289]
[1768575981591,264.0,143.23,143.16,6.2885]
[1768575982299,264.0,143.23,143.13,3.21033644]
[1768575982902,264.0,143.23,143.15,6.2891]
[1768575983100,264.0,143.23,143.14,3.23905268]
[1768575983703,23.52564888,143.28,143.17,3.23905268]
[1768575983899,10.77462718,143.27,143.14,3.23905268]
[1768575984103,5.57497208,143.27,143.14,3.23905268]
[1768575984601,5.57497208,143.27,143.15,3.23905268]
[1768575985808,6.2845,143.26,143.17,6.2882]
[1768575986709,6.2845,143.26,143.18,6.2878]
[1768575986907,5.57497208,143.27,143.18,9.52685268]
[1768575987611,5.57497208,143.27,143.19,9.52645268]
[1768575987808,17.24204888,143.28,143.19,3.23905268]
[1768575988506,17.24204888,143.28,143.2,9.52659195]
[1768575988906,17.24204888,143.28,143.2,3.23989195]
[1768575989109,17.24204888,143.28,143.22,6.286]
[1768575990007,17.24204888,143.28,143.23,6.2856]
[1768575993110,17.24204888,143.28,143.22,3.23989195]
[1768575994011,17.24204888,143.28,143.23,6.2856]
[1768575995812,17.24204888,143.28,143.22,3.23989195]
[1768575997914,6.56894888,143.28,143.25,6.2848]
[1768575998120,4.888e-05,143.28,143.25,6.2848]
[1768576001416,4.888e-05,143.28,143.26,6.2843]
[1768576002622,4.888e-05,143.28,143.26,9.52419195]
[1768576002818,263.92,143.33,143.26,3.23989195]
[1768576003020,167.63999052,143.34,143.26,3.23989195]
[1768576003814,167.63999052,143.34,143.29,6.2831]
[1768576004120,263.92,143.35,143.28,3.23989195]
[1768576004320,5.57497208,143.38,143.31,6.282]
[1768576004519,263.9,143.37,143.3,97.728]
[1768576004727,269.47497208,143.41,143.31,3.23989195]
[1768576005417,263.9,143.41,143.35,6.2803]
[1768576005718,5.57497208,143.44,143.34,100.94379195]
[1768576005918,263.9,143.43,143.38,6.279]
[1768576006117,5.57497208,143.47,143.38,100.91659195]
[1768576006314,263.9,143.47,143.38,100.91659195]
[1768576006817,263.9,143.47,143.39,6.2785]
[1768576007825,263.9,143.47,143.35,100.93569195]
[1768576008014,263.9,143.47,143.36,3.23989195]
[1768576008324,263.9,143.47,143.37,3.23989195]
[1768576009027,263.9,143.47,143.39,6.2784]
[1768576009522,263.9,143.47,143.37,3.23989195]
[1768576010521,263.9,143.47,143.38,6.2789]
[1768576011322,6.2757,143.46,143.35,3.09486308]
[1768576012425,11.83495435,143.46,143.35,3.09486308]
[1768576012827,11.83495435,143.46,143.37,6.2795]
[1768576013326,6.2762,143.45,143.35,6.2802]
[1768576013521,5.55925435,143.46,143.32,100.81076308]
[1768576013522,5.55925435,143.43,143.32,100.81076308]
[1768576013722,5.55925435,143.43,143.32,3.09486308]
[1768576014423,5.55925435,143.43,143.3,97.7296]
[1768576014619,5.55925435,143.43,143.3,100.82446308]
[1768576014815,5.55925435,143.43,143.32,3.09486308]
[1768576015119,263.74,143.44,143.35,100.78636308]
[1768576015323,5.55925435,143.47,143.35,100.78636308]
[1768576015324,5.55925435,143.47,143.37,3.09486308]
[1768576015523,263.74,143.46,143.37,3.09486308]
[1768576017130,263.74,143.46,143.39,6.2786]
[1768576018125,5.55925435,143.47,143.39,6.2786]
[1768576018328,269.27925435,143.47,143.39,6.2786]
[1768576019231,269.27925435,143.47,143.37,6.2793]
[1768576019427,269.27925435,143.47,143.34,100.79736308]
[1768576019831,269.27925435,143.47,143.35,3.09486308]
[1768576020033,269.27925435,143.47,143.37,6.2794]
[1768576020821,269.27925435,143.47,143.37,97.6804]
[1768576021022,263.72,143.47,143.38,3.09486308]
[1768576021927,263.72,143.47,143.39,3.09486308]
[1768576022127,169.60294766,143.5,143.39,3.09486308]
[1768576022335,263.68,143.49,143.42,6.2772]
[1768576022532,433.28294766,143.5,143.42,6.2772]
[1768576022732,263.68,143.5,143.41,3.09486308]
[1768576023338,263.68,143.5,143.42,6.2772]
[1768576023538,263.68,143.5,143.41,3.09486308]
[1768576023736,6.2725,143.54,143.45,6.2758]
[1768576023936,269.23925435,143.53,143.42,3.09486308]
[1768576024536,269.23925435,143.53,143.45,6.276]
[1768576024832,263.66,143.52,143.44,3.09486308]
[1768576025231,263.66,143.52,143.45,6.2758]
[1768576026334,263.66,143.52,143.46,6.2754]
[1768576027440,263.66,143.52,143.44,3.09486308]
[1768576027639,263.66,143.52,143.42,3.09486308]
[1768576028230,263.66,143.52,143.42,6.2771]
[1768576028436,5.55925435,143.5,143.39,3.09486308]
[1768576028739,5.55925435,143.5,143.37,100.77676308]
[1768576029033,5.55925435,143.5,143.37,3.09486308]
[1768576029242,5.55925435,143.47,143.35,3.09486308]
[1768576029438,118.5298,143.5,143.35,3.09486308]
[1768576029439,5.55925435,143.44,143.35,3.09486308]
[1768576029639,5.55925435,143.44,143.32,100.80886308]
[1768576029839,11.83585435,143.44,143.35,6.2804]
[1768576030636,5.55925435,143.44,143.36,6.28]
[1768576030840,263.6,143.43,143.36,6.28]
[1768576031230,118.5453,143.48,143.36,6.28]
[1768576031431,5.55925435,143.46,143.37,6.2795]
[1768576031646,263.6,143.45,143.36,3.09486308]
[1768576031845,263.6,143.45,143.37,3.09486308]
[1768576032342,263.6,143.45,143.37,9.37416308]
[1768576032542,263.6,143.45,143.37,6.2793]
[1768576032844,269.8762,143.45,143.35,6.2801]
[1768576033042,269.15925435,143.45,143.33,3.09486308]
[1768576033841,269.897,143.44,143.35,6.2804]
[1768576034739,275.45625435,143.44,143.35,6.2804]
[1768576034937,269.17925435,143.44,143.33,3.09486308]
[1768576035538,263.62,143.43,143.33,3.09486308]
[1768576035739,26.48925435,143.48,143.34,3.09486308]
[1768576036041,263.62,143.47,143.36,3.09486308]
[1768576036648,5.55925435,143.48,143.38,3.09486308]
[1768576036842,263.62,143.47,143.38,3.09486308]
[1768576037946,5.55925435,143.51,143.4,3.09486308]
[1768576038134,263.62,143.5,143.4,3.09486308]
[1768576038835,263.62,143.5,143.42,6.2771]
[1768576040837,263.62,143.5,143.43,6.2769]
[1768576041346,263.62,143.5,143.44,6.2765]
[1768576041940,6.2728,143.53,143.44,6.2765]
[1768576042140,6.2728,143.53,143.41,100.96584639]
[1768576042141,263.62,143.52,143.45,6.276]
[1768576045450,263.62,143.52,143.43,6.2766]
[1768576045646,6.2735,143.51,143.41,3.31334639]
[1768576045841,5.55925435,143.51,143.38,100.98604639]
[1768576046042,118.5252,143.5,143.38,3.31334639]
[1768576046245,5.55925435,143.48,143.35,101.00874639]
[1768576046449,118.5252,143.5,143.36,3.31334639]
[1768576046653,10.74787246,143.49,143.38,3.31334639]
[1768576046840,5.55925435,143.49,143.38,3.31334639]
[1768576047044,263.58,143.48,143.38,3.31334639]
[1768576047243,263.58,143.47,143.4,6.278]
[1768576047443,263.58,143.47,143.38,3.31334639]
[1768576048040,263.58,143.47,143.36,97.6872]
[1768576048246,26.48925435,143.49,143.36,3.31334639]
[1768576048443,10.27317006,143.48,143.39,3.01782845]
[1768576048653,11.83235435,143.52,143.43,6.2769]
[1768576048850,273.85053048,143.51,143.41,3.01782845]
[1768576049053,263.58,143.51,143.41,3.01782845]
[1768576049552,5.20089391,143.5,143.44,6.2764]
[1768576049757,263.58,143.51,143.44,6.2764]
[1768576050046,5.2008891,143.5,143.44,6.2764]
[1768576050248,263.58,143.51,143.44,6.2764]
[1768576052160,5.20243243,143.5,143.44,6.2764]
[1768576052350,26.48925435,143.55,143.43,3.01782845]
[1768576052553,10.27919847,143.54,143.44,100.65182845]
[1768576052861,268.76212928,143.53,143.44,100.65182845]
[1768576053046,263.56,143.53,143.44,100.65182845]
[1768576053653,263.56,143.53,143.47,6.2752]
[1768576054157,263.56,143.53,143.45,6.2757]
[1768576054566,263.56,143.53,143.44,3.01782845]
[1768576055764,263.56,143.53,143.46,6.2756]
[1768576055953,263.56,143.53,143.4,3.01782845]
[1768576056159,10.27288817,143.52,143.4,3.01782845]
[1768576056362,5.19872099,143.51,143.4,3.01782845]
[1768576056564,290.04925435,143.53,143.4,3.01782845]
[1768576056860,10.27358942,143.52,143.4,3.01782845]
[1768576057064,11.47285588,143.51,143.4,3.01782845]
[1768576057265,5.19967136,143.5,143.4,3.01782845]
[1768576057467,269.11925435,143.53,143.4,3.01782845]
[1768576057659,6.274,143.5,143.4,3.01782845]
[1768576058367,269.11925435,143.53,143.42,6.2772]
[1768576058555,10.27341119,143.52,143.4,3.01782845]
[1768576058760,6.2744,143.49,143.4,6.2779]
[1768576059374,263.54,143.49,143.4,3.01782845]
[1768576059763,263.54,143.5,143.4,3.01782845]
[1768576060069,263.54,143.5,143.43,6.2769]
[1768576060467,263.54,143.5,143.4,3.01782845]
[1768576060675,5.20033167,143.49,143.4,3.01782845]
[1768576060863,263.54,143.5,143.4,3.01782845]
[1768576061063,11.47484665,143.49,143.4,9.29572845]
[1768576061267,263.54,143.5,143.41,3.01782845]
[1768576061772,11.47525113,143.49,143.38,3.01782845]
[1768576061967,290.02925435,143.5,143.36,3.01782845]
[1768576062167,5.20114477,143.49,143.36,3.01782845]
[1768576062364,5.20114477,143.48,143.36,3.01782845]
[1768576062564,290.02925435,143.5,143.36,3.01782845]
[1768576062760,6.2753,143.47,143.38,6.2789]
[1768576063166,290.02925435,143.5,143.39,3.01782845]
[1768576063365,6.2748,143.48,143.39,9.29642845]
[1768576063768,6.2748,143.48,143.35,97.6964]
[1768576063769,269.09925435,143.5,143.4,3.01782845]
[1768576064070,275.37355435,143.5,143.41,6.2777]
[1768576064473,269.09925435,143.5,143.4,3.01782845]
[1768576064668,6.2744,143.49,143.4,9.29612845]
[1768576065066,290.02925435,143.5,143.37,3.01782845]
[1768576065272,5.55925435,143.47,143.37,3.01782845]
[1768576065574,5.20237071,143.46,143.33,3.01782845]
[1768576066875,5.20237071,143.46,143.34,9.29832845]
[1768576067273,5.20237071,143.46,143.35,3.01782845]
[1768576067774,5.20237071,143.46,143.35,9.29822845]
[1768576068274,6.277,143.43,143.35,3.01782845]
[1768576068680,269.11925435,143.44,143.32,3.01782845]
[1768576068879,6.2777,143.42,143.33,9.29912845]
[1768576069182,269.11925435,143.44,143.34,3.01782845]
[1768576069375,263.56,143.44,143.34,3.01782845]
[1768576070376,269.8369,143.44,143.36,9.29782845]
[1768576071574,6.2769,143.44,143.36,9.29782845]
[1768576071780,6.2769,143.44,143.36,3.01782845]
[1768576072573,20.93,143.49,143.37,3.07834675]
[1768576072775,5.20098294,143.48,143.37,3.07834675]
[1768576072976,263.6,143.5,143.37,3.07834675]
[1768576073176,11.47467724,143.49,143.41,6.2777]
[1768576073372,6.2744,143.49,143.41,9.35604675]
[1768576074474,6.2737,143.51,143.42,3.07834675]
[1768576074777,361.1421,143.58,143.45,3.07834675]
[1768576075079,15.77175058,143.56,143.45,3.07834675]
[1768576075282,5.19883474,143.55,143.45,3.07834675]
[1768576075484,5.56115992,143.56,143.45,3.07834675]
[1768576075782,5.19809728,143.55,143.46,3.07834675]
[1768576075984,263.6,143.58,143.46,3.07834675]
[1768576076280,10.20884225,143.57,143.46,3.07834675]
[1768576076580,5.19803897,143.56,143.46,3.07834675]
[1768576076773,6.271,143.57,143.47,6.275]
[1768576076972,5.19733336,143.56,143.47,9.35334675]